bitfinex/quotes_ETHUSD_20260214
["timestamp","ask_amount","ask_price","bid_price","bid_amount"]
[1771079258044,0.47138881,2070.9,2070.2,1.751]
[1771079258242,0.47138881,2070.9,2070.0,1.20768538]
[1771079258461,0.47138881,2070.7,2070.0,1.20768538]
[1771079259059,0.47138881,2070.6,2070.0,1.20768538]
[1771079259357,1.20729759,2070.8,2070.1,0.47111612]
[1771079259563,0.47138881,2070.7,2070.1,0.47111612]
[1771079263141,1.67871093,2070.7,2070.2,1.20761279]
[1771079263577,0.4654839,2070.9,2070.3,0.46087677]
[1771079264091,1.67377615,2071.0,2070.3,0.46087677]
[1771079264673,0.4654839,2070.9,2070.2,1.20761279]
[1771079265575,1.67274679,2070.8,2070.2,1.20761279]
[1771079265795,0.4654839,2070.7,2070.2,1.20761279]
[1771079265945,0.4654839,2070.7,2070.1,1.66854292]
[1771079266356,0.4654839,2070.9,2070.2,0.46087677]
[1771079269587,0.4654839,2070.9,2070.3,1.20755446]
[1771079269996,0.4654839,2070.9,2070.3,1.66843123]
[1771079271785,1.67268978,2070.9,2070.3,1.66843123]
[1771079272171,1.67268978,2070.9,2070.3,1.20755446]
[1771079272692,0.4654839,2070.8,2070.3,1.20755446]
[1771079274397,1.67276245,2070.8,2070.2,4.83021784]
[1771079276071,0.4654839,2070.8,2070.2,4.83021784]
[1771079276903,0.4654839,2070.8,2070.2,0.46087677]
[1771079277394,1.67375497,2071.0,2070.2,0.46087677]
[1771079277756,0.4654839,2070.9,2070.2,0.46087677]
[1771079280694,1.67270651,2070.9,2070.3,1.20755446]
[1771079282095,0.47902367,2070.8,2070.3,1.20755446]
[1771079283792,1.6863011,2070.8,2070.3,1.20755446]
[1771079284662,0.47902367,2070.8,2070.3,1.20755446]
[1771079284965,1.68730798,2071.0,2070.3,1.67267269]
[1771079285285,0.47902367,2070.9,2070.3,1.67267269]
[1771079286202,0.0011,2071.0,2070.4,0.46511823]
[1771079286365,0.0011,2071.0,2070.6,0.46511823]
[1771079286788,0.0011,2071.2,2070.6,0.46511823]
[1771079287107,0.0011,2071.2,2070.8,0.46511823]
[1771079287668,0.0011,2071.4,2071.0,0.46511823]
[1771079288395,0.0011,2071.4,2071.1,1.20708802]
[1771079288604,0.0011,2071.7,2071.4,0.46511823]
[1771079288775,0.0011,2071.9,2071.5,0.46511823]
[1771079288979,0.0034,2071.9,2071.5,0.46511823]
[1771079289795,0.0034,2071.9,2071.6,0.46511823]
[1771079290203,0.0034,2071.9,2071.4,2.21911823]
[1771079290373,0.0034,2071.9,2071.6,1.20679667]
[1771079291582,0.0034,2071.9,2071.5,0.46511823]
[1771079291785,0.0034,2071.9,2071.5,1.20681069]
[1771079292188,0.0023,2071.8,2071.5,1.20681069]
[1771079292606,0.0023,2071.8,2071.4,1.754]
[1771079292805,0.0023,2071.7,2071.4,1.754]
[1771079293108,0.48132367,2071.7,2071.4,1.754]
[1771079293601,0.48132367,2071.7,2071.2,2.96502559]
[1771079293804,0.0023,2071.6,2071.2,2.96502559]
[1771079294007,0.48132367,2071.6,2071.2,1.758]
[1771079294207,0.0023,2071.5,2071.2,1.758]
[1771079294409,0.0023,2071.4,2071.2,1.758]
[1771079294585,0.0023,2071.5,2071.2,1.758]
[1771079295211,0.0023,2071.4,2071.2,1.758]
[1771079295408,0.0023,2071.5,2071.2,2.96502406]
[1771079295581,0.0023,2071.7,2071.2,2.96502406]
[1771079296082,0.0023,2071.6,2071.2,2.96502406]
[1771079296301,0.0023,2071.7,2071.2,2.96502406]
[1771079296607,0.0023,2071.7,2071.2,3.43014229]
[1771079297620,0.0023,2071.6,2071.2,3.43014229]
[1771079297909,0.0023,2071.8,2071.2,3.43014229]
[1771079298277,0.0023,2071.7,2071.2,3.43014229]
[1771079298480,0.0023,2071.8,2071.2,3.43014229]
[1771079298709,0.0023,2071.8,2071.3,0.46511823]
[1771079298906,0.0023,2071.7,2071.3,0.46511823]
[1771079299091,0.0023,2071.8,2071.3,0.46511823]
[1771079299405,0.0023,2071.8,2071.4,1.20691319]
[1771079299578,0.0023,2071.7,2071.4,1.20691319]
[1771079299905,0.0023,2071.8,2071.4,1.20691319]
[1771079300310,0.0023,2071.7,2071.4,1.20691319]
[1771079300610,0.0023,2071.8,2071.4,1.20691319]
[1771079301013,0.0023,2071.7,2071.4,1.20691319]
[1771079301308,0.0023,2071.8,2071.4,1.20691319]
[1771079301714,0.0023,2071.7,2071.4,1.20691319]
[1771079301902,0.0023,2071.8,2071.4,1.20691319]
[1771079302285,0.0023,2071.7,2071.4,1.20691319]
[1771079302477,0.0023,2071.8,2071.4,1.20691319]
[1771079302681,0.0023,2071.8,2071.4,1.67203142]
[1771079302893,0.0011,2071.9,2071.4,1.67203142]
[1771079303106,0.0011,2071.9,2071.5,0.46511823]
[1771079303614,0.0011,2071.9,2071.6,1.20679667]
[1771079303914,0.0011,2071.9,2071.6,2.97479667]
[1771079306317,0.0011,2072.0,2071.6,2.97479667]
[1771079309387,0.48012367,2072.0,2071.4,2.98387865]
[1771079310392,0.48012367,2072.0,2071.4,3.44899688]
[1771079310593,0.0011,2072.0,2071.4,3.44899688]
[1771079314908,0.45712951,2072.0,2071.4,3.44899688]
[1771079319846,0.0011,2072.0,2071.5,6.1696889]
[1771079321347,0.0011,2072.0,2071.6,1.20679667]
[1771079321851,0.4779329,2072.0,2071.5,1.20681509]
[1771079324851,1.68450946,2072.0,2071.5,1.20681509]
[1771079325134,0.4768329,2071.9,2071.5,1.20681509]
[1771079325519,0.4768329,2071.9,2071.2,1.20702974]
[1771079325707,0.4768329,2071.9,2071.2,3.00102974]
[1771079326718,0.4768329,2071.9,2071.2,1.20702974]
[1771079327416,0.4768329,2071.7,2071.2,1.20702974]
[1771079330480,0.4768329,2071.8,2071.2,1.20702974]
[1771079331544,1.20666647,2071.9,2071.2,1.20702974]
[1771079331849,0.4768329,2071.8,2071.2,1.68135218]
[1771079332259,0.4768329,2071.8,2071.2,1.20702974]
[1771079333457,0.4768329,2071.7,2071.2,1.20702974]
[1771079334231,0.4768329,2071.7,2071.1,3.00208762]
[1771079335550,0.4768329,2071.6,2071.1,3.00208762]
[1771079335750,1.68355496,2071.8,2071.1,3.47641006]
[1771079339640,0.4768329,2071.8,2071.2,0.47432244]
[1771079340865,1.68454662,2072.0,2071.2,0.47432244]
[1771079341263,1.68454662,2072.0,2071.4,0.47444023]
[1771079341665,0.4779329,2072.0,2071.5,1.20685493]
[1771079342842,1.68450117,2072.0,2071.5,1.20685493]
[1771079343041,0.45127161,2071.9,2071.4,1.20687094]
[1771079343242,0.45127161,2071.9,2071.4,3.00787094]
[1771079344491,0.45127161,2071.9,2071.4,3.00887094]
[1771079344649,0.0011,2072.0,2071.4,3.00887094]
[1771079344850,0.45237161,2072.0,2071.4,3.00887094]
[1771079345677,0.45237161,2072.0,2071.4,3.48331117]
[1771079346585,0.45127161,2071.9,2071.4,3.00887094]
[1771079350483,0.45127161,2071.8,2071.4,3.00887094]
[1771079351679,1.6589603,2072.0,2071.4,3.00887094]
[1771079351878,1.20768869,2072.0,2071.4,3.00887094]
[1771079352078,0.45127161,2071.9,2071.4,3.00887094]
[1771079354098,0.0011,2072.0,2071.4,3.48331117]
[1771079355791,0.45237161,2072.0,2071.4,3.48331117]
[1771079357111,0.45237161,2072.0,2071.4,3.00887094]
[1771079359616,1.65893914,2072.0,2071.4,3.00887094]
[1771079359793,0.45127161,2071.9,2071.4,3.00887094]
[1771079359990,0.45127161,2071.9,2071.4,1.20687094]
[1771079366415,1.65789899,2071.9,2071.4,1.20687094]
[1771079367217,0.45127161,2071.9,2071.4,1.20687094]
[1771079367531,0.0011,2072.0,2071.4,1.68131117]
[1771079367681,0.0011,2072.0,2071.5,5.71053541]
[1771079368190,0.0011,2072.0,2071.5,6.18497564]
[1771079368395,0.0011,2072.0,2071.4,1.20688374]
[1771079368396,1.20766683,2072.0,2071.4,1.20688374]
[1771079368602,1.20766683,2072.0,2071.5,1.819]
[1771079368603,0.45127161,2071.9,2071.5,1.819]
[1771079373400,0.49477208,2071.8,2071.5,1.819]
[1771079375537,1.702472,2072.0,2071.5,3.0258514]
[1771079377409,0.0011,2072.0,2071.5,3.50764847]
[1771079377643,0.0011,2072.0,2071.5,9.21945038]
[1771079378404,0.0011,2072.0,2071.5,3.50764847]
[1771079381519,0.0011,2072.0,2071.6,0.48987203]
[1771079384236,0.0011,2072.0,2071.5,3.0258514]
[1771079385137,0.0011,2072.0,2071.5,3.51572343]
[1771079388749,0.0011,2072.1,2071.7,6.20167394]
[1771079389238,0.0011,2072.1,2071.8,1.20668018]
[1771079390046,0.4776374,2072.1,2071.7,1.20669198]
[1771079391518,0.4765374,2072.0,2071.6,1.838]
[1771079393960,0.4765374,2072.0,2071.6,3.04475891]
[1771079394247,0.0011,2072.1,2071.6,3.04475891]
[1771079394441,0.4776374,2072.1,2071.6,3.04475891]
[1771079394754,0.0011,2072.1,2071.7,0.48987203]
[1771079395258,0.0011,2072.1,2071.6,3.53463094]
[1771079403434,0.0011,2072.1,2071.7,0.46039742]
[1771079403943,0.0011,2072.2,2071.8,0.46039742]
[1771079404381,0.0011,2072.4,2072.0,0.46039742]
[1771079404970,0.0011,2072.6,2072.2,0.46039742]
[1771079405140,0.0011,2072.6,2072.2,2.31339742]
[1771079405571,0.0011,2072.6,2072.3,1.20638903]
[1771079407349,0.0011,2072.4,2072.3,1.20638903]
[1771079407550,0.0011,2072.6,2072.3,1.20638903]
[1771079408953,0.0011,2072.8,2072.3,1.66678645]
[1771079409685,0.0011,2072.8,2072.4,0.46039742]
[1771079409847,0.0011,2072.8,2072.5,1.859]
[1771079410043,0.0011,2073.0,2072.5,2.31939742]
[1771079411748,0.0011,2073.0,2072.6,31.66661183]
[1771079411943,1.20584287,2073.3,2072.5,6.68386701]
[1771079411944,0.48568412,2073.3,2072.5,1.20622876]
[1771079412182,0.48568412,2073.1,2072.6,0.495]
[1771079413978,0.48568412,2073.3,2072.7,1.20615622]
[1771079415982,0.48568412,2073.3,2072.7,1.66655364]
[1771079416190,0.48568412,2073.6,2072.9,0.46039742]
[1771079416481,0.48568412,2073.5,2072.8,3.051]
[1771079416699,0.48568412,2073.5,2072.7,7.37835555]
[1771079416700,0.48568412,2073.5,2072.7,1.20615622]
[1771079417045,0.48568412,2073.5,2072.8,1.86]
[1771079419301,0.48568412,2073.3,2072.9,1.20603984]
[1771079421999,0.48568412,2073.2,2072.8,1.86]
[1771079422204,0.48568412,2073.1,2072.5,1.86]
[1771079422574,1.20580949,2073.3,2072.2,30.0]
[1771079422575,0.48568412,2072.9,2072.2,30.0]
[1771079422900,0.48568412,2072.7,2072.0,3.06752143]
[1771079423602,0.48568412,2072.6,2072.0,3.06752143]
[1771079424007,0.48568412,2072.8,2072.0,3.52791885]
[1771079424180,0.48568412,2072.8,2072.1,30.46039742]
[1771079424379,0.48568412,2072.8,2072.1,0.46039742]
[1771079426003,0.48568412,2072.8,2072.2,1.20644725]
[1771079428812,0.48568412,2072.8,2072.1,4.82578901]
[1771079429107,0.48568412,2072.8,2072.2,0.46039742]
[1771079431092,0.48568412,2072.8,2072.1,10.53759092]
[1771079431297,0.48568412,2072.8,2072.1,4.82578901]
[1771079432119,0.49092866,2072.7,2072.1,3.07050547]
[1771079433289,0.49092866,2072.6,2072.1,3.07050547]
[1771079434488,0.49092866,2072.8,2072.1,3.56470114]
[1771079434689,0.49092866,2072.8,2072.2,0.49419567]
[1771079434902,0.49092866,2073.0,2072.2,0.49419567]
[1771079435315,0.49092866,2073.0,2072.3,1.20638903]
[1771079435516,0.49092866,2073.0,2072.3,1.7005847]
[1771079435821,0.49092866,2073.0,2072.4,0.49419567]
[1771079435998,1.96392866,2073.2,2072.5,0.49419567]
[1771079436209,0.49092866,2073.2,2072.5,2.35919567]
[1771079437590,0.49092866,2073.2,2072.6,1.20621441]
[1771079438743,0.49092866,2073.2,2072.6,1.70041008]
[1771079439295,1.36002866,2073.4,2072.7,0.49419567]
[1771079439837,1.36002866,2073.4,2072.8,1.20609803]
[1771079440998,0.49202866,2073.4,2072.8,1.20609803]
[1771079441212,0.49202866,2073.4,2072.9,1.865]
[1771079441412,0.0011,2073.4,2072.9,1.865]
[1771079442215,0.0011,2073.4,2073.0,1.20598166]
[1771079445225,0.0011,2073.4,2073.0,1.66345616]
[1771079448251,0.46595828,2073.8,2073.1,0.4574745]
[1771079448625,0.46595828,2073.8,2073.2,1.20586532]
[1771079451053,0.0011,2073.9,2073.2,1.20586532]
[1771079451356,0.0011,2073.9,2073.4,0.4574745]
[1771079452433,5.19158773,2074.4,2073.3,1.873]
[1771079452434,0.83676998,2074.4,2073.7,0.4574745]
[1771079452730,0.46595828,2074.4,2073.7,2.3304745]
[1771079453257,0.46595828,2074.6,2073.9,0.4574745]
[1771079453552,1.6710224,2074.6,2073.9,0.4574745]
[1771079453944,1.67101027,2074.6,2073.9,0.4574745]
[1771079454130,0.46595828,2074.5,2073.8,1.20551644]
[1771079454325,0.46595828,2074.4,2073.6,1.20559326]
[1771079454554,0.46595828,2074.4,2072.9,4.8239293]
[1771079454555,0.46595828,2074.0,2073.1,0.4574745]
[1771079454949,0.46595828,2074.0,2073.3,0.4574745]
[1771079455343,0.46595828,2073.9,2073.4,1.20574901]
[1771079456667,0.46595828,2073.9,2073.2,1.20586532]
[1771079457438,1.2054424,2074.0,2073.1,4.82358533]
[1771079457439,1.67147472,2073.8,2073.1,4.82358533]
[1771079457955,0.46595828,2073.8,2073.1,5.28105983]
[1771079458535,0.46595828,2073.8,2073.1,0.4574745]
[1771079458764,0.46595828,2073.8,2073.0,1.872]
[1771079459068,0.46595828,2073.6,2072.9,1.872]
[1771079459762,0.46595828,2073.4,2073.0,1.20598166]
[1771079460368,0.46595828,2073.4,2073.1,0.001]
[1771079460976,0.46595828,2073.6,2073.1,0.001]
[1771079461272,0.48886173,2073.9,2073.1,0.4584745]
[1771079461867,0.48886173,2073.9,2073.2,1.20586532]
[1771079462069,0.48886173,2073.9,2073.2,1.69969027]
[1771079462255,1.69424194,2074.1,2073.2,1.69969027]
[1771079462455,0.48886173,2074.4,2073.6,30.0]
[1771079462670,0.48886173,2074.6,2073.8,0.49382495]
[1771079463863,0.48886173,2074.6,2073.9,1.20545831]
[1771079464071,0.0011,2074.7,2073.9,1.69928326]
[1771079464256,1.69496413,2074.7,2073.9,1.69928326]
[1771079464578,0.48886173,2074.6,2073.9,1.20545831]
[1771079466078,1.69395137,2074.6,2073.8,4.82183326]
[1771079466380,0.48886173,2074.5,2073.8,4.82183326]
[1771079466939,0.48886173,2074.5,2073.5,5.69076341]
[1771079466940,0.48886173,2074.5,2073.5,0.49382495]
[1771079467143,0.48886173,2074.5,2073.6,1.20563271]
[1771079467345,0.48886173,2074.5,2073.5,1.70068587]
[1771079467346,0.48886173,2074.4,2073.5,1.70068587]
[1771079468169,0.48886173,2074.2,2073.5,1.70068587]
[1771079469289,1.20522585,2074.3,2073.5,2.19451082]
[1771079469463,0.48886173,2074.2,2073.5,1.70068587]
[1771079470371,1.20534207,2074.1,2073.5,1.70068587]
[1771079471289,1.6942038,2074.1,2073.5,1.70068587]
[1771079472191,0.48886173,2074.0,2073.2,4.82336465]
[1771079472484,0.48886173,2073.9,2073.2,4.82336465]
[1771079473480,0.48886173,2073.9,2073.2,5.3171896]
[1771079473887,0.48886173,2073.9,2073.2,5.3181896]
[1771079474275,1.69411383,2074.3,2073.3,0.49382495]
[1771079475092,0.48886173,2074.2,2073.2,7.1851896]
[1771079475577,0.48886173,2074.2,2073.3,0.49382495]
[1771079475972,0.1024,2074.6,2073.5,0.49382495]
[1771079476169,0.0011,2074.7,2073.9,0.49382495]
[1771079476384,0.48886173,2074.6,2074.0,30.0]
[1771079476584,0.48886173,2074.6,2073.9,1.867]
[1771079476767,0.48886173,2074.6,2073.7,0.49382495]
[1771079476972,0.48886173,2074.6,2073.6,0.707]
[1771079477188,1.69397139,2074.5,2073.7,1.20557457]
[1771079477798,1.69397139,2074.5,2073.7,1.69939952]
[1771079477967,0.0011,2074.7,2074.0,0.49382495]
[1771079479285,0.0011,2074.7,2074.1,1.69916702]
[1771079479492,0.0011,2074.7,2074.2,0.49382495]
[1771079481398,0.0011,2074.7,2074.3,1.20522585]
[1771079482907,0.0011,2074.7,2074.2,1.69907317]
[1771079483277,0.0011,2074.7,2074.2,1.20524822]
[1771079483505,1.64492208,2074.8,2074.2,1.20524822]
[1771079484176,0.43996173,2074.8,2074.2,1.20524822]
[1771079485004,0.48886173,2074.7,2074.1,1.867]
[1771079485306,0.48886173,2074.7,2074.1,3.07233473]
[1771079485808,1.69385525,2074.7,2074.1,1.867]
[1771079486009,0.48886173,2074.6,2074.1,1.867]
[1771079486301,0.48886173,2074.6,2073.6,5.781]
[1771079486506,0.48886173,2074.6,2073.6,1.727]
[1771079487095,0.48886173,2074.6,2073.7,0.001]
[1771079488304,1.20510966,2074.5,2073.7,1.20657457]
[1771079488604,0.48886173,2074.4,2073.7,1.20657457]
[1771079488912,0.48886173,2074.4,2073.7,0.001]
[1771079490611,0.48886173,2074.2,2073.7,0.001]
[1771079491196,0.48886173,2074.2,2073.5,0.001]
[1771079492428,0.48886173,2074.2,2073.2,0.001]
[1771079492920,0.46518674,2074.0,2073.2,0.001]
[1771079493484,0.46518674,2074.0,2073.2,0.49288429]
[1771079493820,0.46518674,2074.5,2073.4,0.49188429]
[1771079494023,0.46518674,2074.7,2073.6,0.49188429]
[1771079494315,0.46518674,2074.7,2073.7,0.49188429]
[1771079494628,0.46518674,2074.7,2073.6,1.861]
[1771079494914,0.46518674,2074.5,2073.4,1.20572313]
[1771079495907,0.46518674,2074.5,2073.5,0.49188429]
[1771079496883,0.46518674,2074.5,2073.7,0.49188429]
[1771079497181,0.46518674,2074.6,2073.6,1.20563271]
[1771079498938,0.46518674,2074.4,2073.6,1.20563271]
[1771079499637,0.46518674,2074.4,2073.5,1.2056466]
[1771079501132,1.20522585,2074.3,2073.5,1.2056466]
[1771079502036,1.69655657,2074.3,2073.5,1.2056466]
[1771079502720,1.69655657,2074.3,2073.4,1.69760271]
[1771079503345,1.2052108,2074.4,2073.5,0.49984884]
[1771079506345,1.2052108,2074.4,2073.6,1.20563271]
[1771079506552,1.2052108,2074.4,2073.7,0.49984884]
[1771079508657,1.69646899,2074.5,2073.8,1.20551644]
[1771079509016,1.69646899,2074.5,2073.8,1.70536528]
[1771079511650,1.69646899,2074.5,2073.8,1.70536486]
[1771079512044,1.20509863,2074.6,2073.9,0.49984884]
[1771079512479,1.69642935,2074.6,2073.9,0.49984884]
[1771079513144,0.49133072,2074.5,2073.8,1.20548369]
[1771079514163,0.49133072,2074.5,2073.5,1.20564514]
[1771079514467,0.49133072,2074.5,2073.6,0.49984884]
[1771079514832,1.20509863,2074.6,2073.6,0.49984884]
[1771079515076,1.20503898,2074.7,2074.0,0.49984884]
[1771079516959,1.445,2074.8,2074.0,0.49984884]
[1771079517334,1.445,2074.8,2074.2,0.49984884]
[1771079518257,1.20600764,2074.9,2074.2,0.49984884]
[1771079518974,1.69733836,2074.9,2074.2,0.49984884]
[1771079519839,1.69733836,2074.9,2074.2,1.70510067]
[1771079521473,1.69733836,2074.9,2074.2,0.49984884]
[1771079522169,1.69733836,2074.9,2074.2,1.70513169]
[1771079522584,0.0011,2074.9,2074.3,0.4627508]
[1771079524244,0.0011,2074.9,2074.5,0.4627508]
[1771079524451,1.20451213,2075.6,2074.9,0.4627508]
[1771079525180,0.47862362,2075.5,2074.5,0.4627508]
[1771079525571,0.47862362,2075.5,2074.4,1.20516775]
[1771079525877,0.47862362,2075.5,2074.4,0.4627508]
[1771079526250,0.47862362,2075.3,2074.5,1.20510966]
[1771079526674,1.20458706,2075.4,2074.5,1.66786046]
[1771079526876,1.20458706,2075.4,2074.5,1.20510966]
[1771079527040,1.20458706,2075.4,2074.5,1.66786046]
[1771079527240,1.68321068,2075.4,2074.5,0.4627508]
[1771079527478,0.47862362,2075.3,2074.5,0.4627508]
[1771079527677,0.47862362,2075.3,2074.4,1.20516236]
[1771079527862,0.47972362,2075.2,2074.4,1.20516236]
[1771079528260,1.20476121,2075.1,2074.4,1.20516236]
[1771079528577,1.20584331,2075.2,2074.5,0.4627508]
[1771079528778,0.0011,2075.2,2074.5,0.4627508]
[1771079528982,1.20580425,2075.2,2074.5,0.4627508]
[1771079529649,0.0011,2075.2,2074.5,0.4627508]
[1771079530045,0.0011,2075.2,2074.7,0.4627508]
[1771079530281,0.0011,2075.2,2074.9,0.4627508]
[1771079532787,0.0011,2075.2,2075.0,1.20481927]
[1771079541564,0.0011,2075.2,2074.6,1.20500963]
[1771079541788,0.0011,2075.2,2074.7,1.851]
[1771079542368,0.0011,2075.2,2074.8,0.4627508]
[1771079542693,0.0011,2075.2,2075.0,0.4627508]
[1771079543067,0.0011,2075.2,2074.9,1.20487734]
[1771079543261,0.0011,2075.2,2074.8,1.20493445]
[1771079543479,0.0011,2075.2,2074.9,0.4627508]
[1771079545078,0.0011,2075.2,2075.0,1.66757007]
[1771079546406,0.0011,2075.4,2075.0,1.66757007]
[1771079546803,0.0011,2075.4,2075.1,1.857]
[1771079547109,0.0011,2075.4,2075.2,1.20470316]
[1771079548106,0.47862362,2075.9,2075.2,1.66745396]
[1771079549911,1.682937,2075.9,2075.2,1.66745396]
[1771079550278,1.682937,2075.9,2075.2,0.4627508]
[1771079550594,0.47862362,2075.8,2075.1,3.06172752]
[1771079550800,0.47862362,2075.8,2075.1,3.52447832]
[1771079552082,1.68298983,2075.8,2075.1,3.52447832]
[1771079552812,1.20436621,2075.8,2075.1,3.06172752]
[1771079552992,0.48538201,2076.2,2075.3,0.45668134]
[1771079553706,0.48538201,2076.3,2075.3,0.45668134]
[1771079554687,0.48538201,2076.2,2075.4,1.6612684]
[1771079555016,0.48648201,2076.2,2075.5,1.859]
[1771079556921,1.68956292,2076.1,2075.5,3.06351867]
[1771079557614,0.48538201,2076.0,2075.5,1.859]
[1771079558120,0.48538201,2076.0,2074.8,0.45668134]
[1771079558289,0.48538201,2076.0,2074.7,1.20594738]
[1771079558290,0.48538201,2075.5,2074.7,1.20594738]
[1771079558486,0.48538201,2075.5,2074.7,0.001]
[1771079558889,0.48538201,2075.3,2074.7,0.001]
[1771079559589,1.68995376,2075.5,2074.7,0.45768134]
[1771079559790,1.20450366,2075.6,2074.9,0.45668134]
[1771079560840,0.46077178,2075.5,2074.7,0.48123796]
[1771079561123,1.66535884,2075.4,2074.8,1.20493541]
[1771079562122,0.46077178,2075.4,2074.8,1.20493541]
[1771079562304,1.20457251,2075.5,2074.8,1.20493541]
[1771079562510,0.46077178,2075.4,2074.8,1.20493541]
[1771079562829,0.46077178,2075.4,2074.7,1.20596184]
[1771079563127,1.66537516,2075.4,2074.7,1.20596184]
[1771079563304,1.20453704,2075.5,2074.8,0.48023796]
[1771079563504,1.66530882,2075.5,2074.8,0.48023796]
[1771079564024,1.20453704,2075.5,2074.8,0.48023796]
[1771079564514,1.66530882,2075.5,2074.7,1.20596184]
[1771079564715,0.46077178,2075.5,2074.7,1.6861998]
[1771079565227,1.20458706,2075.4,2074.7,1.6861998]
[1771079567000,1.66547494,2075.2,2074.7,1.20599291]
[1771079567503,1.20470316,2075.2,2074.7,0.001]
[1771079567824,0.46077178,2075.1,2074.7,0.001]
[1771079568037,1.20470316,2075.2,2074.7,0.001]
[1771079569001,0.46077178,2075.1,2074.7,0.001]
[1771079569201,1.66556393,2075.1,2074.7,0.001]
[1771079569435,1.2047514,2075.2,2074.7,0.001]
[1771079571529,1.66552318,2075.2,2074.7,0.001]
[1771079571836,0.46077178,2075.1,2074.7,0.001]
[1771079573218,0.46077178,2074.9,2074.7,0.001]
[1771079573734,1.20481927,2075.0,2074.7,0.001]
[1771079574139,10.3,2075.7,2074.7,0.001]
[1771079574444,0.46077178,2075.5,2074.7,0.001]
[1771079574619,0.46077178,2075.5,2074.7,0.48123796]
[1771079575025,4.81789702,2075.6,2074.7,0.48123796]
[1771079575335,5.2786688,2075.6,2074.8,1.20493541]
[1771079576114,5.2786688,2075.6,2074.7,1.68619776]
[1771079576314,0.46077178,2075.5,2074.7,1.2059598]
[1771079577741,1.20458706,2075.4,2074.7,1.68619776]
[1771079577944,1.66535884,2075.4,2074.7,1.2059598]
[1771079578250,0.46077178,2075.6,2074.7,1.68619776]
[1771079578542,1.2045714,2075.5,2074.8,0.48023796]
[1771079578913,1.66534318,2075.5,2074.8,0.48023796]
[1771079579948,1.66534318,2075.5,2074.8,1.68515949]
[1771079580548,2.63445625,2075.7,2074.9,0.48023796]
[1771079581753,3.10664697,2075.7,2074.9,0.48023796]
[1771079581952,7.36811994,2075.6,2074.8,1.68115345]
[1771079582156,1.67667806,2075.6,2074.9,0.47623192]
[1771079582458,1.43,2075.7,2074.9,0.47623192]
[1771079582619,1.20433064,2075.9,2075.0,0.47623192]
[1771079583256,1.67652136,2075.9,2075.0,0.47623192]
[1771079584123,0.47329072,2075.8,2075.1,1.20476121]
[1771079585357,0.47329072,2075.8,2075.0,1.68101645]
[1771079586052,1.20441296,2075.7,2075.0,1.68101645]
[1771079586231,1.67660368,2075.7,2075.0,1.68101645]
[1771079586739,0.47219072,2075.6,2074.9,6.87283582]
[1771079587743,1.20441296,2075.7,2074.9,7.34906774]
[1771079588048,1.20441296,2075.7,2075.0,0.47623192]
[1771079589259,1.67660368,2075.7,2074.9,6.87283582]
[1771079589458,0.47219072,2075.6,2074.9,6.87283582]
[1771079589842,0.47219072,2075.6,2074.9,7.34906774]
[1771079590160,1.67669117,2075.6,2074.9,7.34906774]
[1771079590664,1.429,2075.5,2074.7,0.001]
[1771079590865,0.47219072,2075.2,2074.7,0.001]
[1771079592241,1.20476121,2075.1,2074.7,0.001]
[1771079594267,1.20476121,2075.1,2074.5,0.001]
[1771079595239,1.2047382,2075.2,2074.6,0.47623192]
[1771079596845,5.29085711,2075.3,2074.6,0.47623192]
[1771079597172,0.47219072,2075.2,2074.5,0.001]
[1771079598040,0.47219072,2075.2,2074.5,1.20610595]
[1771079598548,4.81845326,2075.4,2074.6,0.47623192]
[1771079598747,4.81845326,2075.4,2074.7,1.20499349]
[1771079599061,4.81845326,2075.4,2074.5,0.001]
[1771079599062,5.29064398,2075.4,2074.5,1.68229414]
[1771079599243,0.47219072,2075.3,2074.5,1.68229414]
[1771079601252,1.20470316,2075.2,2074.5,1.68229414]
[1771079601448,1.67688198,2075.3,2074.6,0.47623192]
[1771079601649,5.29043314,2075.5,2074.6,0.47623192]
[1771079604153,1.20451659,2075.6,2074.8,0.47623192]
[1771079607975,1.20451659,2075.6,2074.9,1.68110926]
[1771079608169,1.67670731,2075.6,2074.9,0.47623192]
[1771079608477,0.47219072,2075.5,2074.8,0.47623192]
[1771079608896,0.47219072,2075.5,2074.7,1.20494801]
[1771079609171,0.47219072,2075.5,2074.6,1.68125534]
[1771079610682,0.47219072,2075.3,2074.6,1.68125534]
[1771079610868,0.47219072,2075.3,2074.6,1.68126687]
[1771079613478,1.20470316,2075.2,2074.6,1.68126687]
[1771079613961,1.68852077,2075.2,2074.5,3.51398249]
[1771079615191,0.48381761,2075.2,2074.5,3.51398249]
[1771079615354,1.20468436,2075.3,2074.6,0.46387543]
[1771079615557,0.48381761,2075.4,2074.7,1.66886892]
[1771079616381,1.20452902,2075.5,2074.8,0.46387543]
[1771079616686,1.20443636,2075.7,2074.9,0.46387543]
[1771079616885,1.20549294,2075.8,2075.0,1.838]
[1771079617058,1.20549294,2075.8,2075.1,0.46387543]
[1771079617868,1.20549294,2075.8,2075.2,1.20470316]
[1771079620596,0.0011,2075.8,2075.2,1.68684397]
[1771079623802,0.0011,2075.8,2075.1,1.20472622]
[1771079623803,0.47457978,2075.8,2075.1,1.20472622]
[1771079625526,1.20441296,2075.7,2075.1,1.20472622]
[1771079627314,1.20441296,2075.7,2075.1,1.68686703]
[1771079629323,1.67789274,2075.7,2075.1,0.48214081]
[1771079629495,1.67789274,2075.7,2075.1,1.68690189]
[1771079630016,0.47347978,2075.6,2075.0,1.838]
[1771079630589,1.20452902,2075.5,2075.0,1.838]
[1771079630826,1.6780088,2075.5,2075.0,1.838]
[1771079634219,1.20452902,2075.5,2075.0,1.838]
[1771079634525,1.20441296,2075.7,2075.1,0.48214081]
[1771079638397,1.20441296,2075.7,2075.2,1.20470316]
[1771079638596,1.67897221,2075.8,2075.2,1.68684397]
[1771079640099,1.67897221,2075.8,2075.2,0.48214081]
[1771079640599,0.47347978,2075.7,2075.1,1.20472345]
[1771079642817,1.20447099,2075.6,2075.1,1.20472345]
[1771079643228,1.67793771,2075.7,2075.1,1.20472345]
[1771079643406,1.67793771,2075.7,2075.1,1.68196149]
[1771079647819,1.67793771,2075.7,2075.1,0.47723804]
[1771079648142,1.69552536,2075.7,2075.0,3.04279238]
[1771079648310,1.69552536,2075.7,2075.0,3.52003042]
[1771079648511,1.69552536,2075.7,2075.1,0.47723804]
[1771079648911,1.20549929,2075.8,2075.1,0.47723804]
[1771079649416,1.20549929,2075.8,2075.2,1.20470316]
[1771079649616,0.49106743,2075.7,2075.2,1.20470316]
[1771079650018,0.49106743,2075.7,2075.1,1.20471802]
[1771079650428,0.49106743,2075.7,2075.1,1.68195606]
[1771079652249,1.69656672,2075.8,2075.2,0.47723804]